bitfinex/quotes_BTCUSD_20241206
["timestamp","ask_amount","ask_price","bid_price","bid_amount"]
[1733497898497,2.06049314,98991.0,98970.0,0.0017352]
[1733497898498,0.38795,98981.0,98970.0,0.0017352]
[1733497898724,0.51727764,98981.0,98970.0,0.0017352]
[1733497898967,0.352079,98971.0,98970.0,0.0017352]
[1733497899191,0.45711054,98971.0,98970.0,0.0017352]
[1733497899410,0.49300254,98971.0,98970.0,0.0017352]
[1733497899653,0.375099,98961.0,98950.0,0.0017328]
[1733497899915,0.49302254,98961.0,98950.0,0.0017328]
[1733497900347,0.45713054,98961.0,98950.0,0.0017328]
[1733497900577,0.21855138,98961.0,98950.0,0.0017328]
[1733497901000,0.37655138,98961.0,98960.0,0.0027354]
[1733497901209,0.38055138,98961.0,98960.0,0.0027354]
[1733497901419,0.22255138,98961.0,98960.0,0.0017354]
[1733497901633,0.202081,98971.0,98960.0,0.0017354]
[1733497901854,0.208099,98961.0,98960.0,0.0027354]
[1733497902068,0.209099,98961.0,98960.0,0.0027354]
[1733497902751,0.209099,98961.0,98960.0,0.0398434]
[1733497902752,0.007,98961.0,98960.0,0.0398434]
[1733497902963,0.007,98961.0,98960.0,0.14487494]
[1733497903389,0.007,98961.0,98960.0,0.32148522]
[1733497903390,0.006,98961.0,98960.0,0.32148522]
[1733497903611,0.202035,98993.0,98970.0,0.037108]
[1733497903612,0.002,98971.0,98970.0,0.037108]
[1733497903830,0.002,98971.0,98970.0,0.19314978]
[1733497904282,0.202036,98993.0,98988.0,0.037108]
[1733497904496,0.202036,98993.0,98971.0,0.202079]
[1733497904497,1.5,98992.0,98991.0,0.037108]
[1733497905329,0.202038,98991.0,98988.0,0.037108]
[1733497905541,1.5,98992.0,98988.0,0.037108]
[1733497905810,1.5,98992.0,98984.0,0.037108]
[1733497906025,0.202046,98988.0,98984.0,0.037108]
[1733497906255,0.202079,98971.0,98970.0,0.009]
[1733497906482,0.202079,98971.0,98960.0,0.1273354]
[1733497906483,0.202099,98961.0,98960.0,0.1273354]
[1733497906985,0.202099,98961.0,98960.0,0.0017354]
[1733497906986,1.852099,98961.0,98960.0,0.0017354]
[1733497907215,1.875099,98961.0,98960.0,0.0017354]
[1733497907423,1.875099,98961.0,98960.0,0.0012354]
[1733497907848,1.876099,98961.0,98960.0,0.0102354]
[1733497908054,1.89266184,98961.0,98960.0,0.0102354]
[1733497908266,1.89166184,98961.0,98960.0,0.0012354]
[1733497908472,1.89266184,98961.0,98960.0,0.0012354]
[1733497908691,1.89466184,98961.0,98960.0,0.0012354]
[1733497908905,1.89366184,98961.0,98960.0,0.0012354]
[1733497909173,1.89766184,98961.0,98960.0,0.0012354]
[1733497909835,1.89566184,98961.0,98960.0,0.0012354]
[1733497910091,1.89766184,98961.0,98960.0,0.0012354]
[1733497910543,1.89166184,98961.0,98960.0,0.0012354]
[1733497910763,1.89566184,98961.0,98960.0,0.0012354]
[1733497910988,1.89766184,98961.0,98960.0,0.0012354]
[1733497911199,1.87066184,98961.0,98960.0,0.0012354]
[1733497911414,1.89566184,98961.0,98960.0,0.0012354]
[1733497911628,2.1055883,98961.0,98960.0,0.0012354]
[1733497911835,2.00269338,98961.0,98960.0,0.0012354]
[1733497912669,2.00269338,98961.0,98960.0,4e-07]
[1733497913605,2.00673938,98961.0,98960.0,4e-07]
[1733497915016,0.37512,98951.0,98950.0,8e-07]
[1733497915244,0.49304354,98951.0,98950.0,8e-07]
[1733497915748,1.99304354,98951.0,98950.0,8e-07]
[1733497916003,0.375161,98931.0,98918.0,0.037108]
[1733497916253,0.48019254,98931.0,98910.0,0.0148409]
[1733497916486,0.50636735,98931.0,98917.0,0.037108]
[1733497916725,0.50636735,98931.0,98910.0,0.0148409]
[1733497916726,2.00636735,98931.0,98910.0,0.0148409]
[1733497917696,1.67018813,98931.0,98918.0,0.037108]
[1733497917915,0.02218813,98931.0,98922.0,0.037108]
[1733497918330,0.02218813,98931.0,98930.0,0.0388408]
[1733497918331,0.006,98931.0,98930.0,0.0388408]
[1733497918562,0.13203154,98931.0,98930.0,0.0017328]
[1733497919625,1.63203154,98931.0,98930.0,0.0017328]
[1733497919836,1.62803154,98931.0,98930.0,0.0017328]
[1733497920018,1.78003154,98931.0,98930.0,0.0017328]
[1733497920228,1.84492354,98931.0,98930.0,0.0017328]
[1733497920457,1.79292354,98931.0,98930.0,0.0017328]
[1733497920684,1.79292354,98931.0,98910.0,0.0148409]
[1733497920685,0.375201,98911.0,98910.0,0.0148409]
[1733497920907,0.48023254,98911.0,98910.0,0.0148409]
[1733497921398,0.425222,98901.0,98900.0,0.0027428]
[1733497921611,0.202283,98871.0,98870.0,0.0017332]
[1733497924651,0.20232,98853.0,98852.0,0.037028]
[1733497924857,0.023,98865.0,98852.0,0.037028]
[1733497925076,0.023,98865.0,98843.0,1.0]
[1733497925077,0.01680254,98872.0,98861.0,0.037028]
[1733497925293,0.27171259,98890.0,98844.0,0.00101162]
[1733497925294,0.05,98900.0,98876.0,0.037028]
[1733497925537,0.27171259,98910.0,98885.0,0.037028]
[1733497925538,0.202247,98889.0,98885.0,0.037028]
[1733497925974,0.10503154,98888.0,98868.0,0.037028]
[1733497926198,0.10503154,98888.0,98846.0,0.02044267]
[1733497926199,0.202277,98874.0,98873.0,0.037028]
[1733497926410,0.202294,98866.0,98865.0,0.037028]
[1733497927553,0.202274,98876.0,98873.0,0.038028]
[1733497927777,0.48690859,98900.0,98877.0,0.037028]
[1733497927778,0.202263,98881.0,98877.0,0.037028]
[1733497928006,0.202263,98881.0,98880.0,0.037028]
[1733497928253,1.65,98899.0,98881.0,0.037028]
[1733497928254,0.202228,98898.0,98881.0,0.037028]
[1733497928466,0.202223,98901.0,98893.0,0.037028]
[1733497928684,0.27171259,98920.0,98893.0,0.037028]
[1733497928685,0.146472,98919.0,98893.0,0.037028]
[1733497928906,0.202236,98894.0,98893.0,0.037028]
[1733497929557,0.202236,98894.0,98882.0,0.1241]
[1733497929558,1.5,98908.0,98899.0,0.037028]
[1733497929767,0.20221,98907.0,98904.0,0.037028]
[1733497929978,1.5,98908.0,98905.0,0.037028]
[1733497930180,0.20221,98907.0,98906.0,0.037028]
[1733497930617,1.5,98908.0,98888.0,0.202247]
[1733497930618,1.5,98908.0,98907.0,0.037028]
[1733497930851,1.501,98908.0,98907.0,0.037028]
[1733497931273,1.502,98908.0,98907.0,0.037028]
[1733497931473,1.5,98908.0,98907.0,0.037028]
[1733497931903,1.502,98908.0,98907.0,0.037028]
[1733497932766,0.002,98908.0,98907.0,0.037028]
[1733497933018,0.002,98908.0,98907.0,0.165328]
[1733497933234,0.202158,98933.0,98932.0,0.037028]
[1733497933682,1.702158,98933.0,98932.0,0.037028]
[1733497934575,1.702158,98933.0,98932.0,0.038028]
[1733497934873,1.702158,98933.0,98907.0,0.1373]
[1733497934874,1.702158,98933.0,98931.0,0.037028]
[1733497935126,1.702158,98933.0,98932.0,0.037028]
[1733497936811,1.702157,98933.0,98932.0,0.037028]
[1733497937037,1.702157,98933.0,98907.0,0.1283]
[1733497937038,0.202159,98932.0,98923.0,0.037028]
[1733497937305,0.202159,98932.0,98922.0,0.037028]
[1733497937306,0.202175,98924.0,98922.0,0.037028]
[1733497937552,0.202163,98931.0,98930.0,0.037028]
[1733497937786,0.404326,98931.0,98926.0,0.037028]
[1733497938011,0.12803154,98930.0,98926.0,0.037028]
[1733497938249,0.12803154,98930.0,98907.0,0.1283]
[1733497938250,1.702169,98927.0,98915.0,0.037028]
[1733497938507,1.702169,98927.0,98907.0,0.1283]
[1733497938508,0.202197,98913.0,98907.0,0.0494]
[1733497938768,0.202208,98908.0,98907.0,0.086428]
[1733497939010,0.202208,98908.0,98907.0,0.037028]
[1733497939715,1.702208,98908.0,98907.0,0.037028]
[1733497940859,1.5,98908.0,98907.0,0.037028]
[1733497941346,1.501,98908.0,98907.0,0.038028]
[1733497941347,1.501,98908.0,98907.0,0.042028]
[1733497941562,0.001,98908.0,98907.0,0.042028]
[1733497942077,0.001,98908.0,98907.0,0.038028]
[1733497942346,0.202174,98925.0,98924.0,0.037028]
[1733497943319,1.702174,98925.0,98924.0,0.037028]
[1733497943791,1.702174,98925.0,98916.0,0.037028]
[1733497943792,0.202189,98917.0,98916.0,0.037028]
[1733497944043,0.202185,98919.0,98913.0,0.037028]
[1733497944278,0.10503154,98918.0,98907.0,0.037028]
[1733497944516,0.10503154,98918.0,98893.0,0.0471]
[1733497944517,0.202206,98909.0,98908.0,0.037028]
[1733497944766,1.702206,98909.0,98908.0,0.037028]
[1733497945476,1.702206,98909.0,98907.0,0.037028]
[1733497945715,1.702206,98909.0,98908.0,0.037028]
[1733497945962,1.5,98909.0,98908.0,0.037028]
[1733497946189,1.5,98909.0,98893.0,0.0471]
[1733497946190,0.202188,98918.0,98916.0,0.001]
[1733497946426,0.202201,98911.0,98910.0,0.037028]
[1733497946686,0.202201,98911.0,98893.0,0.0471]
[1733497946687,0.202201,98911.0,98896.0,0.15]
[1733497946911,0.202201,98911.0,98910.0,0.037028]
[1733497947810,1.5,98918.0,98917.0,0.037028]
[1733497948712,0.15,98953.0,98932.0,0.037028]
[1733497948929,0.202171,98926.0,98925.0,0.083628]
[1733497949375,0.202181,98921.0,98920.0,0.037028]
[1733497950932,0.203181,98921.0,98920.0,0.039028]
[1733497951143,0.202181,98921.0,98920.0,0.039028]
[1733497951356,0.202181,98921.0,98920.0,0.040028]
[1733497951805,0.202181,98921.0,98920.0,0.038028]
[1733497952265,0.33021254,98921.0,98920.0,0.001]
[1733497952709,0.202193,98915.0,98914.0,0.037028]
[1733497953147,0.202193,98915.0,98895.0,0.0828]
[1733497953148,0.202224,98900.0,98899.0,0.037028]
[1733497953362,0.023,98914.0,98907.0,0.037028]
[1733497953363,0.12803154,98914.0,98907.0,0.037028]
[1733497953589,0.202249,98888.0,98887.0,0.037028]
[1733497953811,0.152249,98888.0,98887.0,0.037028]
[1733497954257,0.152249,98888.0,98873.0,0.13549716]
[1733497954258,0.10503154,98888.0,98872.0,0.09033144]
[1733497954470,0.10503154,98888.0,98856.0,0.1271]
[1733497954471,0.202275,98875.0,98871.0,0.12735944]
[1733497954709,0.202275,98875.0,98874.0,0.037028]
[1733497955390,1.702275,98875.0,98874.0,0.037028]
[1733497956315,1.904552,98875.0,98874.0,0.037028]
[1733497956525,1.904552,98875.0,98872.0,0.037028]
[1733497956732,1.904552,98875.0,98873.0,0.037028]
[1733497956962,1.904552,98875.0,98850.0,0.001738]
[1733497956963,0.05,98871.0,98870.0,2e-07]
[1733497957178,0.05,98871.0,98850.0,0.001738]
[1733497957179,0.225324,98851.0,98850.0,0.001738]
[1733497957390,0.33035554,98851.0,98850.0,0.001738]
[1733497958469,0.33235554,98851.0,98850.0,0.001738]
[1733497959393,0.34734865,98851.0,98850.0,0.001738]
[1733497959621,0.21931711,98851.0,98850.0,0.001738]
[1733497959831,0.22831711,98851.0,98850.0,0.002738]
[1733497960050,0.22831711,98851.0,98850.0,0.038766]
[1733497960051,0.204324,98851.0,98850.0,0.038766]
[1733497960753,0.006,98851.0,98850.0,0.038766]
[1733497960967,0.004,98851.0,98850.0,0.038766]
[1733497961190,0.007,98851.0,98850.0,0.161266]
[1733497961415,0.003,98851.0,98850.0,0.161266]
[1733497961627,0.003,98851.0,98850.0,0.16579415]
[1733497961853,0.01534702,98860.0,98850.0,0.16579415]
[1733497961854,0.202306,98860.0,98859.0,0.037028]
[1733497963860,0.202306,98860.0,98859.0,0.038028]
[1733497966511,0.202276,98875.0,98874.0,0.037028]
[1733497966951,1.702276,98875.0,98874.0,0.037028]
[1733497967613,1.503,98875.0,98874.0,0.037028]
[1733497968114,1.509,98875.0,98874.0,0.038028]
[1733497968365,1.509,98875.0,98874.0,0.001]
[1733497968621,1.52443929,98875.0,98874.0,0.001]
[1733497968864,1.52443929,98875.0,98855.0,0.0456]
[1733497968865,1.51843929,98875.0,98857.0,0.037028]
[1733497969120,1.51843929,98875.0,98869.0,0.037028]
[1733497969121,0.202281,98872.0,98869.0,0.037028]
[1733497969369,0.202294,98866.0,98865.0,0.037028]
[1733497970431,0.202294,98866.0,98850.0,0.001738]
[1733497970672,0.12047083,98875.0,98850.0,0.001738]
[1733497970673,0.202318,98854.0,98853.0,0.037028]
[1733497971125,1.60503154,98854.0,98850.0,0.001738]
[1733497971344,0.30735154,98853.0,98850.0,0.038766]
[1733497971562,0.30735154,98853.0,98852.0,0.037028]
[1733497971790,0.30735154,98853.0,98850.0,0.001738]
[1733497971791,0.20232,98853.0,98850.0,0.001738]
[1733497972033,1.70232,98853.0,98852.0,0.037028]
[1733497972488,1.71786446,98853.0,98852.0,0.037028]
[1733497972711,1.71786446,98853.0,98852.0,0.03431082]
[1733497972712,1.70232,98853.0,98852.0,0.03431082]
[1733497973418,0.202306,98860.0,98858.0,0.03431082]
[1733497973643,0.202306,98860.0,98859.0,0.03431082]
[1733497973903,0.202288,98869.0,98868.0,0.03431082]
[1733497975126,0.202288,98869.0,98868.0,0.03531082]
[1733497975350,1.702288,98869.0,98868.0,0.03531082]
[1733497975611,1.702288,98869.0,98868.0,0.03431082]
[1733497976325,0.202287,98869.0,98868.0,0.03531082]
[1733497976754,0.202287,98869.0,98868.0,0.02331082]
[1733497978932,0.20180143,98869.0,98868.0,0.02331082]
[1733497979602,0.20180143,98869.0,98868.0,0.003]
[1733497979603,0.32983297,98869.0,98868.0,0.003]
[1733497979899,0.202308,98859.0,98855.0,0.01931082]
[1733497980132,0.30733954,98859.0,98855.0,0.01931082]
[1733497980336,0.30733954,98859.0,98850.0,0.02104882]
[1733497980337,0.202324,98851.0,98850.0,0.02104882]
[1733497980975,0.202324,98851.0,98850.0,0.001738]
[1733497980976,0.33035554,98851.0,98850.0,0.001738]
[1733497981216,1.83035554,98851.0,98850.0,0.02104882]
[1733497981440,1.83035554,98851.0,98850.0,0.001738]
[1733497981896,1.83035554,98851.0,98850.0,0.003738]
[1733497982111,1.84536137,98851.0,98850.0,0.003738]
[1733497982357,1.82236137,98851.0,98850.0,0.004738]
[1733497982596,0.21732983,98851.0,98850.0,0.004738]
[1733497982813,0.20232,98853.0,98852.0,0.01931082]
[1733497984173,0.20232,98853.0,98852.0,0.002]
[1733497984174,0.30735154,98853.0,98852.0,0.002]
[1733497984622,1.80735154,98853.0,98852.0,0.002]
[1733497984840,1.80735154,98853.0,98851.0,0.01931082]
[1733497984841,0.023,98852.0,98851.0,0.01931082]
[1733497985053,0.12803154,98852.0,98851.0,0.01931082]
[1733497986160,1.70832,98853.0,98851.0,0.01931082]
[1733497986161,0.20832,98853.0,98851.0,0.01931082]
[1733497986394,0.10503154,98852.0,98850.0,0.001738]
[1733497986613,0.30735554,98851.0,98850.0,0.001738]
[1733497987327,0.30735554,98851.0,98809.0,0.15]
[1733497987328,0.202365,98831.0,98809.0,0.0766]
[1733497987542,0.33039654,98831.0,98823.0,0.01931082]
[1733497987973,0.33039654,98831.0,98809.0,0.0766]
[1733497988415,0.33039654,98831.0,98803.0,0.0457]
[1733497988416,0.33039654,98831.0,98823.0,0.01931082]
[1733497988629,0.33039654,98831.0,98830.0,0.004735]
[1733497989684,0.202365,98831.0,98830.0,0.02404582]
[1733497990555,0.204365,98831.0,98830.0,0.02104582]
[1733497990979,0.202355,98836.0,98830.0,0.02104582]
[1733497991216,0.202355,98836.0,98835.0,0.01931082]
[1733497992095,0.202355,98836.0,98830.0,0.001735]
[1733497992096,0.202351,98838.0,98837.0,0.01931082]
[1733497992609,0.21746899,98841.0,98837.0,0.01931082]
[1733497992832,1.5,98859.0,98853.0,0.01931082]
[1733497992833,0.202319,98854.0,98853.0,0.01931082]
[1733497993922,0.202312,98858.0,98857.0,0.01931082]
[1733497994363,0.2181402,98858.0,98857.0,0.01931082]
[1733497994581,0.0158282,98858.0,98857.0,0.01931082]
[1733497994808,0.0158282,98858.0,98857.0,0.49714236]
[1733497995048,0.0008688,98870.0,98869.0,0.27159782]
[1733497995310,0.0008688,98870.0,98869.0,0.45902936]
[1733497995535,0.0008688,98870.0,98869.0,0.50772936]
[1733497995740,0.0008688,98870.0,98869.0,0.79304286]
[1733497995955,0.0008688,98870.0,98869.0,0.7980388]
[1733497996162,0.0008688,98870.0,98869.0,1.04107996]
[1733497996378,0.20224,98892.0,98891.0,0.01931082]
[1733497996593,0.202239,98893.0,98892.0,0.01931082]
[1733497996799,1.702231,98897.0,98892.0,0.01931082]
[1733497997007,1.702231,98897.0,98887.0,0.09033368]
[1733497997008,1.702231,98897.0,98896.0,0.01931082]
[1733497997466,0.202244,98890.0,98889.0,0.01931082]
[1733497998177,0.202232,98896.0,98895.0,0.01931082]
[1733497998633,1.503,98897.0,98887.0,0.09040384]
[1733497998634,0.202249,98888.0,98887.0,0.09040384]
[1733497998880,0.202249,98888.0,98887.0,0.01931082]
[1733497999303,0.202249,98888.0,98887.0,0.10975454]
[1733497999525,0.202249,98888.0,98887.0,0.01931082]
[1733498000426,0.202234,98895.0,98875.0,0.13550052]
[1733498000427,0.202234,98895.0,98894.0,0.01931082]
[1733498000908,0.202236,98894.0,98891.0,0.01931082]
[1733498001174,0.202236,98894.0,98893.0,0.01931082]
[1733498001445,0.202236,98894.0,98887.0,0.02031082]
[1733498001446,0.202249,98888.0,98887.0,0.02031082]
[1733498001694,0.202249,98888.0,98871.0,0.22583421]
[1733498001695,0.202255,98885.0,98883.0,0.01931082]
[1733498001918,0.30728854,98884.0,98883.0,0.01891082]
[1733498002172,1.80728854,98884.0,98883.0,0.01891082]
[1733498003168,1.80728854,98884.0,98868.0,0.09044372]
[1733498003169,0.202285,98870.0,98868.0,0.09044372]
[1733498003395,0.202285,98870.0,98859.0,0.0756]
[1733498003396,0.202285,98870.0,98869.0,0.06761082]
[1733498003621,0.202285,98870.0,98869.0,0.0487]
[1733498003838,1.702285,98870.0,98869.0,0.06761082]
[1733498004266,1.5,98870.0,98869.0,0.06761082]
[1733498004484,0.202283,98872.0,98871.0,0.01891082]
[1733498004706,0.404566,98872.0,98869.0,0.0487]
[1733498004975,0.202285,98870.0,98869.0,0.0487]
[1733498005262,0.45831654,98870.0,98869.0,0.007001]
[1733498005497,0.45831654,98870.0,98869.0,0.006001]
[1733498005498,0.203285,98870.0,98869.0,0.006001]
[1733498005707,0.202285,98870.0,98869.0,1e-06]
[1733498006360,0.202285,98870.0,98869.0,0.01891182]
[1733498007455,0.207285,98870.0,98869.0,0.01991182]
[1733498007897,0.001,98872.0,98869.0,0.01891182]
[1733498008136,0.001,98872.0,98871.0,0.01891082]
[1733498008360,0.001,98872.0,98871.0,0.14694236]
[1733498008579,0.202251,98887.0,98886.0,0.01891082]
[1733498008802,0.404502,98887.0,98886.0,0.01891082]
[1733498010332,0.404502,98887.0,98886.0,0.01991082]
[1733498010960,1.904502,98887.0,98886.0,0.02391082]
[1733498011173,1.904502,98887.0,98886.0,0.005]
[1733498011644,1.904502,98887.0,98886.0,0.02391082]
[1733498011851,1.904502,98887.0,98886.0,0.01991082]
[1733498012068,1.904502,98887.0,98886.0,0.02091082]
[1733498012527,1.904502,98887.0,98886.0,0.01991082]
[1733498013027,1.905502,98887.0,98886.0,0.01991082]
[1733498013527,0.202251,98887.0,98886.0,0.01991082]
[1733498014247,0.404493,98889.0,98888.0,0.01891082]
[1733498015881,0.404502,98887.0,98873.0,0.023]
[1733498016146,0.0114788,98888.0,98875.0,0.023]
[1733498017133,0.0114788,98888.0,98879.0,0.023]
[1733498017373,0.0114788,98888.0,98887.0,0.325251]
[1733498017626,0.0114788,98888.0,98887.0,0.58028254]
[1733498017854,0.0124788,98888.0,98887.0,0.58028254]
[1733498018347,0.0114788,98888.0,98887.0,0.66592427]
[1733498018568,0.0124788,98888.0,98887.0,0.31367327]
[1733498018805,0.0114788,98888.0,98887.0,0.17803154]
[1733498019051,0.0114788,98888.0,98887.0,0.26840006]
[1733498019283,0.0114788,98888.0,98887.0,0.28865085]
[1733498019526,0.0114788,98888.0,98887.0,0.19828233]
[1733498019987,0.0124788,98888.0,98887.0,0.082]
[1733498020221,0.0124788,98888.0,98887.0,0.009]
[1733498020513,0.202234,98896.0,98886.0,0.13564173]
[1733498020726,0.002,98888.0,98887.0,0.35048316]
[1733498020981,0.002,98888.0,98887.0,0.009]
[1733498021244,0.001,98888.0,98887.0,0.30054992]
[1733498021540,0.001,98888.0,98887.0,0.59026296]
[1733498021541,0.002,98888.0,98887.0,0.59026296]
[1733498021799,0.33962811,98983.0,98887.0,0.59026296]
[1733498021800,0.05,98963.0,98889.0,0.273]
[1733498022029,0.202173,98925.0,98889.0,0.71151595]
[1733498022501,0.202173,98925.0,98889.0,0.71139984]
[1733498022749,0.202186,98919.0,98905.0,0.05]
[1733498023003,0.202169,98927.0,98915.0,0.023]
[1733498023235,0.202146,98939.0,98919.0,0.225185]
[1733498023460,0.202157,98933.0,98920.0,0.023]
[1733498023723,0.202157,98933.0,98922.0,0.023]
[1733498023951,0.202157,98933.0,98924.0,0.11327985]
[1733498024181,0.202157,98933.0,98924.0,0.12803154]
[1733498024412,0.202148,98937.0,98924.0,0.12803154]
[1733498024655,0.01412606,98945.0,98921.0,0.09027985]
[1733498024885,0.202185,98920.0,98917.0,0.023]
[1733498025122,0.202185,98920.0,98915.0,0.023]
[1733498025352,0.40437,98920.0,98914.0,0.02023108]
[1733498025603,0.202144,98939.0,98908.0,0.09027985]
[1733498025604,0.202198,98913.0,98908.0,0.09027985]
[1733498025834,1.5,98912.0,98905.0,0.09627985]
[1733498026068,1.5,98912.0,98905.0,0.006]
[1733498026299,1.5,98912.0,98904.0,0.09027985]
[1733498026543,1.5,98912.0,98907.0,0.09027985]
[1733498026782,1.5,98912.0,98908.0,0.09027985]
[1733498027026,1.5,98912.0,98911.0,0.0204576]
[1733498027504,0.202157,98933.0,98913.0,0.202197]
[1733498027758,0.22748634,98970.0,98921.0,0.023]
[1733498028003,1.5,98932.0,98923.0,0.023]
[1733498028228,1.5,98932.0,98925.0,0.023]
[1733498028477,0.202118,98953.0,98933.0,0.202156]
[1733498028734,0.202118,98953.0,98934.0,0.10503154]
[1733498028735,0.202127,98948.0,98934.0,0.10503154]
[1733498029227,0.404254,98948.0,98934.0,0.10503154]
[1733498029454,0.202127,98948.0,98935.0,0.00101063]
[1733498029683,0.202127,98948.0,98935.0,0.02000861]
[1733498029684,0.404254,98948.0,98935.0,0.02000861]
[1733498029921,0.202138,98943.0,98935.0,0.02000861]
[1733498030142,0.202138,98943.0,98934.0,0.10903154]
[1733498030143,0.202148,98938.0,98934.0,0.10903154]
[1733498030370,0.202148,98938.0,98926.0,0.09027985]
[1733498030624,0.01448563,98955.0,98927.0,0.02025312]
[1733498030874,0.202148,98937.0,98935.0,0.009]
[1733498031130,1.5,98936.0,98935.0,0.018]
[1733498031358,1.5,98936.0,98935.0,0.009]
[1733498032002,0.202152,98935.0,98927.0,0.02025312]
[1733498032451,0.000869,98940.0,98927.0,0.02025312]
[1733498032676,0.202169,98927.0,98926.0,0.009]
[1733498032903,0.202182,98921.0,98919.0,0.0205745]
[1733498033368,0.202194,98915.0,98909.0,0.24027985]
[1733498033609,0.19180586,98940.0,98908.0,0.09027985]
[1733498033826,0.202202,98911.0,98905.0,0.09027985]
[1733498034048,0.202202,98911.0,98900.0,0.0017312]
[1733498034049,0.202202,98911.0,98903.0,0.09027985]
[1733498034260,0.202198,98913.0,98904.0,0.10503154]
[1733498034479,1.501,98927.0,98904.0,0.09027985]
[1733498034692,0.202214,98905.0,98900.0,0.0017312]
[1733498034914,0.404428,98905.0,98900.0,0.0017312]
[1733498035818,0.202214,98905.0,98900.0,0.0017312]
[1733498036049,0.404429,98905.0,98900.0,0.0017312]
[1733498036477,0.404429,98905.0,98900.0,0.0107312]
[1733498036707,0.404429,98905.0,98904.0,0.009]
[1733498037182,0.404429,98905.0,98900.0,0.0081802]
[1733498037400,0.405429,98905.0,98902.0,0.09027985]
[1733498037661,0.203214,98905.0,98902.0,0.09027985]
[1733498037900,0.202214,98905.0,98903.0,0.09027985]
[1733498038136,0.203214,98905.0,98904.0,0.009]
[1733498038393,0.202214,98905.0,98902.0,0.09024818]
[1733498038663,0.01420877,98911.0,98904.0,0.009]
[1733498038886,0.202204,98910.0,98904.0,0.009]
[1733498039137,0.202173,98925.0,98904.0,0.009]
[1733498039138,0.202193,98916.0,98904.0,0.09924818]
[1733498039391,0.202188,98918.0,98904.0,0.19527972]
[1733498039630,0.202188,98918.0,98905.0,0.09024818]
[1733498039849,0.202189,98917.0,98905.0,0.09024818]
[1733498040318,0.202189,98917.0,98906.0,0.09125912]
[1733498040550,0.001,98916.0,98907.0,0.09024818]
[1733498040777,0.202166,98929.0,98907.0,0.09024818]
[1733498040778,0.202175,98924.0,98915.0,0.09024818]
[1733498041017,0.202187,98918.0,98917.0,0.09027644]
[1733498041240,0.202187,98918.0,98913.0,0.09027644]
[1733498041483,0.2022,98912.0,98909.0,0.13542122]
[1733498042173,0.001,98917.0,98912.0,0.202199]
[1733498042402,0.001,98917.0,98914.0,0.09027287]
[1733498042616,0.001,98917.0,98916.0,0.402151]
[1733498042852,0.001,98917.0,98916.0,0.84039764]
[1733498043085,0.001,98917.0,98916.0,0.50718254]
[1733498043304,0.001,98917.0,98916.0,1.07094555]
[1733498043584,4e-05,98930.0,98929.0,0.202165]
[1733498043804,4e-05,98930.0,98929.0,0.30719654]
[1733498044248,4e-05,98930.0,98929.0,0.10503154]
[1733498044921,4e-05,98930.0,98929.0,0.11403154]
[1733498045375,4e-05,98930.0,98929.0,0.10503154]
[1733498045604,4e-05,98930.0,98929.0,0.195231]
[1733498046056,4e-05,98930.0,98929.0,0.11403154]
[1733498046307,4e-05,98930.0,98929.0,0.20423]
[1733498046523,4e-05,98930.0,98929.0,0.23379459]
[1733498046749,4e-05,98930.0,98929.0,0.14361071]
[1733498048551,0.202146,98939.0,98929.0,0.14361071]
[1733498048763,0.20216,98932.0,98929.0,0.018]
[1733498048991,0.202146,98939.0,98929.0,0.018]
[1733498049216,1.5,98938.0,98929.0,0.018]
[1733498049444,1.5,98938.0,98929.0,0.009]
[1733498049692,1.5,98938.0,98931.0,0.202161]
[1733498049982,4e-05,98950.0,98937.0,0.252147]
[1733498050235,4e-05,98950.0,98949.0,0.202124]
[1733498050463,4e-05,98950.0,98949.0,0.45715554]
[1733498050923,4e-05,98950.0,98949.0,0.50715554]
[1733498051204,0.000868,98970.0,98957.0,0.05]
[1733498051422,0.000868,98970.0,98962.0,0.202096]
[1733498051649,0.000868,98970.0,98964.0,0.202093]
[1733498051900,0.000868,98970.0,98965.0,0.30813279]
[1733498052128,0.000868,98970.0,98969.0,0.27279559]
[1733498052373,0.000868,98970.0,98969.0,0.52782713]
[1733498052639,0.0008683,98990.0,98974.0,0.05]
[1733498052878,0.0008683,98990.0,98983.0,0.202053]
[1733498053130,0.0008683,98990.0,98985.0,0.20205]
[1733498053353,0.0008683,98990.0,98988.0,0.02006541]
[1733498053584,0.000908,99000.0,98988.0,0.02006541]
[1733498053585,0.000908,99000.0,98988.0,0.10503154]
[1733498053821,0.20204,98990.0,98988.0,0.10503154]
[1733498054066,0.023908,99000.0,98988.0,0.10503154]
[1733498054316,0.202042,98989.0,98987.0,0.02042913]
[1733498054558,0.202059,98981.0,98974.0,0.09014463]
[1733498054791,0.20052634,99000.0,98970.0,0.09014463]
[1733498054792,0.202075,98973.0,98970.0,0.09014463]
[1733498055038,0.202075,98973.0,98968.0,0.13527832]
[1733498055039,0.023,98970.0,98967.0,0.09014463]
[1733498055279,0.023,98968.0,98962.0,0.09014463]
[1733498055542,0.404194,98962.0,98958.0,0.09014463]
[1733498055793,0.023,98949.0,98947.0,0.02009774]
[1733498056328,0.2021,98961.0,98948.0,0.19517617]
[1733498056542,0.023,98963.0,98948.0,0.19517617]
[1733498056776,0.404195,98962.0,98948.0,0.19517617]
[1733498056987,0.023,98963.0,98948.0,0.10503154]
[1733498056988,0.202116,98953.0,98948.0,0.10503154]
[1733498057227,0.023,98963.0,98948.0,0.10503154]
[1733498057228,0.202101,98960.0,98948.0,0.10503154]
[1733498057482,0.023,98955.0,98948.0,0.10503154]
[1733498057697,0.202119,98952.0,98948.0,0.009]
[1733498057925,0.404238,98952.0,98948.0,0.009]
[1733498058166,0.202122,98950.0,98948.0,0.009]
[1733498058398,0.023,98949.0,98948.0,0.013]
[1733498058659,0.17661834,98970.0,98948.0,0.013]